[Event "Titled Tuesday Blitz January 03 Late 2023"]
[White "Gurevich, Dmitry"]
[Black "Riehle, Marco"]
[WhiteFideId "2000407"]
[BlackFideId "12904392"]
[WhiteElo "2393"]
[BlackElo "2368"]
[Result "0-1"]
[Round "02"]
[TimeControl "180+2"]
[Date "2023.01.03"]
[WhiteClock "0:00:55"]
[BlackClock "0:00:42"]

1. d4 {[%clk 0:03:00]}  d5 {[%clk 0:02:59]} 2. c4 {[%clk 0:03:00]}  e6 {[%clk 0:02:56]} 3. Nc3 {[%clk 0:02:59]}  c5 {[%clk 0:02:56]} 4. e3 {[%clk 0:03:00]}  cxd4 {[%clk 0:02:52]} 5. exd4 {[%clk 0:02:59]}  Nf6 {[%clk 0:02:53]} 6. Nf3 {[%clk 0:02:59]}  Be7 {[%clk 0:02:53]} 7. cxd5 {[%clk 0:02:57]}  Nxd5 {[%clk 0:02:53]} 8. Bd3 {[%clk 0:02:57]}  O-O {[%clk 0:02:53]} 9. O-O {[%clk 0:02:57]}  Nc6 {[%clk 0:02:50]} 10. Qe2 {[%clk 0:02:51]}  Re8 {[%clk 0:02:36]} 11. Rd1 {[%clk 0:02:50]}  Bf6 {[%clk 0:02:35]} 12. a3 {[%clk 0:02:39]}  Nce7 {[%clk 0:02:28]} 13. Ne4 {[%clk 0:02:37]}  Ng6 {[%clk 0:02:27]} 14. g3 {[%clk 0:02:26]}  b6 {[%clk 0:02:20]} 15. Bb5 {[%clk 0:02:15]}  Bd7 {[%clk 0:02:17]} 16. Ba6 {[%clk 0:02:06]}  Bc6 {[%clk 0:02:12]} 17. h4 {[%clk 0:02:04]}  Nc7 {[%clk 0:01:59]} 18. Bd3 {[%clk 0:01:59]}  h6 {[%clk 0:01:55]} 19. h5 {[%clk 0:01:56]}  Nf8 {[%clk 0:01:54]} 20. Bf4 {[%clk 0:01:46]}  Nd5 {[%clk 0:01:47]} 21. Be5 {[%clk 0:01:44]}  Nh7 {[%clk 0:01:26]} 22. Rac1 {[%clk 0:01:40]}  Ba4 {[%clk 0:01:25]} 23. Re1 {[%clk 0:01:32]}  a5 {[%clk 0:01:09]} 24. Bb5 {[%clk 0:01:19]}  Bxb5 {[%clk 0:01:07]} 25. Qxb5 {[%clk 0:01:19]}  Bxe5 {[%clk 0:00:56]} 26. dxe5 {[%clk 0:01:16]}  Qe7 {[%clk 0:00:53]} 27. Nd6 {[%clk 0:01:10]}  Red8 {[%clk 0:00:52]} 28. Nd4 {[%clk 0:01:08]}  Qg5 {[%clk 0:00:45]} 29. Rc7 {[%clk 0:01:03]}  Rf8 {[%clk 0:00:43]} 30. Qe2 {[%clk 0:00:55]}  Nxc7 {[%clk 0:00:42]} 0-1


[Site "https://www.chess.com"]

[Event "Titled Tuesday Blitz January 03 Late 2023"]
[White "Stearman, Josiah"]
[Black "Slade, Theodore"]
[WhiteFideId "2062496"]
[BlackFideId "426547"]
[WhiteElo "2385"]
[BlackElo "1995"]
[Result "0-1"]
[Round "02"]
[TimeControl "180+2"]
[Date "2023.01.03"]
[WhiteClock "0:00:10"]
[BlackClock "0:00:30"]

1. e4 {[%clk 0:02:52]}  e5 {[%clk 0:03:00]} 2. Nf3 {[%clk 0:02:52]}  Nc6 {[%clk 0:03:01]} 3. Bc4 {[%clk 0:02:52]}  Bc5 {[%clk 0:03:01]} 4. O-O {[%clk 0:02:52]}  Nf6 {[%clk 0:03:01]} 5. d4 {[%clk 0:02:52]}  Bxd4 {[%clk 0:03:01]} 6. Nxd4 {[%clk 0:02:52]}  Nxd4 {[%clk 0:03:02]} 7. f4 {[%clk 0:02:53]}  d6 {[%clk 0:03:02]} 8. fxe5 {[%clk 0:02:54]}  dxe5 {[%clk 0:03:03]} 9. Bg5 {[%clk 0:02:54]}  Qe7 {[%clk 0:02:36]} 10. Na3 {[%clk 0:02:53]}  Rg8 {[%clk 0:02:34]} 11. Kh1 {[%clk 0:02:46]}  Bd7 {[%clk 0:02:31]} 12. Qe1 {[%clk 0:02:38]}  O-O-O {[%clk 0:02:25]} 13. c3 {[%clk 0:02:31]}  Ne6 {[%clk 0:02:25]} 14. Be3 {[%clk 0:02:31]}  Kb8 {[%clk 0:02:11]} 15. Qh4 {[%clk 0:02:24]}  Bc6 {[%clk 0:02:08]} 16. Rae1 {[%clk 0:02:11]}  g5 {[%clk 0:02:08]} 17. Qh6 {[%clk 0:02:03]}  Rg6 {[%clk 0:02:06]} 18. Qh3 {[%clk 0:02:00]}  Nxe4 {[%clk 0:02:00]} 19. Qf5 {[%clk 0:01:49]}  Rh6 {[%clk 0:01:22]} 20. Qxe5 {[%clk 0:01:36]}  Nd6 {[%clk 0:01:10]} 21. Bb3 {[%clk 0:00:29]}  Rg8 {[%clk 0:01:09]} 22. Nc4 {[%clk 0:00:25]}  Nxc4 {[%clk 0:01:08]} 23. Bxc4 {[%clk 0:00:26]}  Rhg6 {[%clk 0:00:52]} 24. b4 {[%clk 0:00:25]}  a6 {[%clk 0:00:50]} 25. Bf2 {[%clk 0:00:14]}  Qd6 {[%clk 0:00:45]} 26. Qe3 {[%clk 0:00:13]}  Nf4 {[%clk 0:00:43]} 27. Qa7+ {[%clk 0:00:13]}  Kc8 {[%clk 0:00:43]} 28. Rg1 {[%clk 0:00:11]}  Nxg2 {[%clk 0:00:37]} 29. Rxg2 {[%clk 0:00:11]}  Bxg2+ {[%clk 0:00:31]} 30. Kxg2 {[%clk 0:00:10]}  Qc6+ {[%clk 0:00:32]} 31. Kg1 {[%clk 0:00:11]}  Qxc4 {[%clk 0:00:32]} 32. Rd1 {[%clk 0:00:10]}  Qg4+ {[%clk 0:00:30]} 0-1


[Site "https://www.chess.com"]

[Event "Titled Tuesday Blitz January 03 Late 2023"]
[White "Martinez Reyes, Pedro Ramon"]
[Black "Dimitrov, Atanas"]
[WhiteFideId "3901807"]
[BlackFideId "2901315"]
[WhiteElo "2376"]
[BlackElo "2269"]
[Result "1/2-1/2"]
[Round "02"]
[TimeControl "180+2"]
[Date "2023.01.03"]
[WhiteClock "0:00:06"]
[BlackClock "0:00:03"]

1. e4 {[%clk 0:03:00]}  c5 {[%clk 0:03:00]} 2. Nf3 {[%clk 0:03:01]}  d6 {[%clk 0:03:00]} 3. d4 {[%clk 0:03:01]}  cxd4 {[%clk 0:03:01]} 4. Nxd4 {[%clk 0:03:02]}  Nf6 {[%clk 0:02:54]} 5. Nc3 {[%clk 0:03:02]}  g6 {[%clk 0:02:55]} 6. Be2 {[%clk 0:02:52]}  Bg7 {[%clk 0:02:55]} 7. O-O {[%clk 0:02:53]}  O-O {[%clk 0:02:55]} 8. Re1 {[%clk 0:02:53]}  Nc6 {[%clk 0:02:54]} 9. Nb3 {[%clk 0:02:53]}  a6 {[%clk 0:02:51]} 10. Bg5 {[%clk 0:02:53]}  Bd7 {[%clk 0:02:47]} 11. Bf1 {[%clk 0:02:53]}  h6 {[%clk 0:02:42]} 12. Bh4 {[%clk 0:02:53]}  g5 {[%clk 0:02:40]} 13. Bg3 {[%clk 0:02:53]}  Rc8 {[%clk 0:02:36]} 14. Nd5 {[%clk 0:02:49]}  Nxd5 {[%clk 0:02:35]} 15. exd5 {[%clk 0:02:50]}  Ne5 {[%clk 0:02:35]} 16. c3 {[%clk 0:02:48]}  Ng6 {[%clk 0:02:29]} 17. Bd3 {[%clk 0:02:38]}  f5 {[%clk 0:02:28]} 18. Nd4 {[%clk 0:02:13]}  Bxd4 {[%clk 0:02:18]} 19. cxd4 {[%clk 0:02:14]}  Kg7 {[%clk 0:02:15]} 20. f3 {[%clk 0:02:05]}  Qa5 {[%clk 0:02:07]} 21. Qb3 {[%clk 0:01:55]}  b5 {[%clk 0:01:37]} 22. Bf2 {[%clk 0:01:54]}  b4 {[%clk 0:01:31]} 23. a3 {[%clk 0:01:48]}  Rb8 {[%clk 0:01:23]} 24. axb4 {[%clk 0:01:16]}  Qxb4 {[%clk 0:01:16]} 25. Qxb4 {[%clk 0:01:08]}  Rxb4 {[%clk 0:01:17]} 26. Rxa6 {[%clk 0:01:08]}  Rxb2 {[%clk 0:01:18]} 27. Ra7 {[%clk 0:01:08]}  Rd8 {[%clk 0:01:09]} 28. Bf1 {[%clk 0:00:53]}  Kf6 {[%clk 0:01:02]} 29. Rc7 {[%clk 0:00:48]}  Nf8 {[%clk 0:01:00]} 30. h4 {[%clk 0:00:45]}  Ra8 {[%clk 0:00:57]} 31. hxg5+ {[%clk 0:00:46]}  hxg5 {[%clk 0:00:57]} 32. f4 {[%clk 0:00:46]}  Raa2 {[%clk 0:00:40]} 33. fxg5+ {[%clk 0:00:35]}  Kxg5 {[%clk 0:00:25]} 34. Be3+ {[%clk 0:00:34]}  f4 {[%clk 0:00:25]} 35. Bc1 {[%clk 0:00:34]}  Rc2 {[%clk 0:00:24]} 36. Rxc2 {[%clk 0:00:32]}  Rxc2 {[%clk 0:00:25]} 37. g3 {[%clk 0:00:30]}  Ng6 {[%clk 0:00:16]} 38. Bd3 {[%clk 0:00:30]}  Rc3 {[%clk 0:00:14]} 39. Bxg6 {[%clk 0:00:18]}  Rxg3+ {[%clk 0:00:14]} 40. Kf2 {[%clk 0:00:18]}  Kxg6 {[%clk 0:00:14]} 41. Bxf4 {[%clk 0:00:19]}  Rg4 {[%clk 0:00:13]} 42. Kf3 {[%clk 0:00:19]}  Kf5 {[%clk 0:00:12]} 43. Bg3 {[%clk 0:00:12]}  Rg7 {[%clk 0:00:07]} 44. Bh4 {[%clk 0:00:08]}  e6 {[%clk 0:00:07]} 45. dxe6 {[%clk 0:00:08]}  Bxe6 {[%clk 0:00:08]} 46. Bg3 {[%clk 0:00:08]}  Bd5+ {[%clk 0:00:09]} 47. Kf2 {[%clk 0:00:09]}  Rg6 {[%clk 0:00:09]} 48. Re3 {[%clk 0:00:08]}  Be4 {[%clk 0:00:09]} 49. Rc3 {[%clk 0:00:08]}  d5 {[%clk 0:00:07]} 50. Ra3 {[%clk 0:00:08]}  Rb6 {[%clk 0:00:06]} 51. Be5 {[%clk 0:00:08]}  Kg4 {[%clk 0:00:04]} 52. Rg3+ {[%clk 0:00:07]}  Kf5 {[%clk 0:00:05]} 53. Rg8 {[%clk 0:00:07]}  Rb2+ {[%clk 0:00:05]} 54. Ke3 {[%clk 0:00:07]}  Rb3+ {[%clk 0:00:05]} 55. Kf2 {[%clk 0:00:07]}  Rf3+ {[%clk 0:00:06]} 56. Ke2 {[%clk 0:00:08]}  Rb3 {[%clk 0:00:04]} 57. Rf8+ {[%clk 0:00:08]}  Ke6 {[%clk 0:00:04]} 58. Rf6+ {[%clk 0:00:08]}  Kd7 {[%clk 0:00:05]} 59. Rd6+ {[%clk 0:00:07]}  Ke7 {[%clk 0:00:06]} 60. Rh6 {[%clk 0:00:08]}  Kf7 {[%clk 0:00:06]} 61. Rf6+ {[%clk 0:00:07]}  Ke7 {[%clk 0:00:06]} 62. Rh6 {[%clk 0:00:07]}  Rb2+ {[%clk 0:00:06]} 63. Ke3 {[%clk 0:00:06]}  Rb3+ {[%clk 0:00:07]} 64. Kf4 {[%clk 0:00:06]}  Rf3+ {[%clk 0:00:07]} 65. Kg4 {[%clk 0:00:06]}  Rf1 {[%clk 0:00:07]} 66. Rb6 {[%clk 0:00:05]}  Kd7 {[%clk 0:00:07]} 67. Kg5 {[%clk 0:00:05]}  Rf5+ {[%clk 0:00:05]} 68. Kg4 {[%clk 0:00:05]}  Rf1 {[%clk 0:00:04]} 69. Rd6+ {[%clk 0:00:05]}  Kc8 {[%clk 0:00:04]} 70. Rb6 {[%clk 0:00:05]}  Rc1 {[%clk 0:00:04]} 71. Kg5 {[%clk 0:00:05]}  Rf1 {[%clk 0:00:03]} 72. Kg4 {[%clk 0:00:05]}  Rg1+ {[%clk 0:00:02]} 73. Kf4 {[%clk 0:00:05]}  Rf1+ {[%clk 0:00:03]} 74. Ke3 {[%clk 0:00:05]}  Rf3+ {[%clk 0:00:04]} 75. Ke2 {[%clk 0:00:06]}  Ra3 {[%clk 0:00:02]} 76. Kd2 {[%clk 0:00:06]}  Ra2+ {[%clk 0:00:03]} 77. Ke3 {[%clk 0:00:06]} 1/2-1/2


[Site "https://www.chess.com"]

[Event "Titled Tuesday Blitz January 03 Late 2023"]
[White "Antonica, Dragos-Andrei"]
[Black "Rangel, Daniel"]
[WhiteFideId "1246372"]
[BlackFideId "2124475"]
[WhiteElo "2373"]
[BlackElo "2207"]
[Result "0-1"]
[Round "02"]
[TimeControl "180+2"]
[Date "2023.01.03"]
[WhiteClock "0:01:04"]
[BlackClock "0:01:34"]

1. d4 {[%clk 0:02:56]}  d5 {[%clk 0:02:59]} 2. c4 {[%clk 0:02:57]}  c6 {[%clk 0:03:00]} 3. Nf3 {[%clk 0:02:55]}  Nf6 {[%clk 0:02:59]} 4. Nc3 {[%clk 0:02:55]}  e6 {[%clk 0:02:59]} 5. Bg5 {[%clk 0:02:54]}  Nbd7 {[%clk 0:02:59]} 6. e3 {[%clk 0:02:54]}  h6 {[%clk 0:02:58]} 7. Bh4 {[%clk 0:02:53]}  g5 {[%clk 0:02:58]} 8. Bg3 {[%clk 0:02:53]}  Nh5 {[%clk 0:02:58]} 9. Bd3 {[%clk 0:02:53]}  Nxg3 {[%clk 0:02:58]} 10. hxg3 {[%clk 0:02:54]}  Bg7 {[%clk 0:02:59]} 11. O-O {[%clk 0:02:49]}  a6 {[%clk 0:02:58]} 12. cxd5 {[%clk 0:02:49]}  cxd5 {[%clk 0:02:58]} 13. e4 {[%clk 0:02:40]}  dxe4 {[%clk 0:02:55]} 14. Nxe4 {[%clk 0:02:41]}  O-O {[%clk 0:02:55]} 15. Bc2 {[%clk 0:02:27]}  Nf6 {[%clk 0:02:53]} 16. Nxf6+ {[%clk 0:02:25]}  Qxf6 {[%clk 0:02:54]} 17. Qd3 {[%clk 0:02:25]}  Rd8 {[%clk 0:02:52]} 18. Rad1 {[%clk 0:02:22]}  Bd7 {[%clk 0:02:46]} 19. d5 {[%clk 0:02:23]}  Bb5 {[%clk 0:02:45]} 20. Qh7+ {[%clk 0:02:23]}  Kf8 {[%clk 0:02:44]} 21. Rfe1 {[%clk 0:02:16]}  Rxd5 {[%clk 0:02:24]} 22. Be4 {[%clk 0:01:53]}  Rxd1 {[%clk 0:02:10]} 23. Rxd1 {[%clk 0:01:53]}  Rd8 {[%clk 0:01:58]} 24. Rxd8+ {[%clk 0:01:39]}  Qxd8 {[%clk 0:01:59]} 25. Bxb7 {[%clk 0:01:40]}  Qd1+ {[%clk 0:01:57]} 26. Kh2 {[%clk 0:01:40]}  Qe2 {[%clk 0:01:50]} 27. Be4 {[%clk 0:01:17]}  Qxf2 {[%clk 0:01:41]} 28. Bc2 {[%clk 0:01:15]}  Bf1 {[%clk 0:01:36]} 29. Nxg5 {[%clk 0:01:04]}  Qxg2# {[%clk 0:01:34]} 0-1


[Site "https://www.chess.com"]

[Event "Titled Tuesday Blitz January 03 Late 2023"]
[White "Martin Duque, Jesus"]
[Black "Salimova, Nurgyul"]
[WhiteFideId "2208954"]
[BlackFideId "2915138"]
[WhiteElo "2386"]
[BlackElo "2391"]
[Result "0-1"]
[Round "02"]
[TimeControl "180+2"]
[Date "2023.01.03"]
[WhiteClock "0:01:33"]
[BlackClock "0:01:03"]

1. Nf3 {[%clk 0:02:28]}  Nf6 {[%clk 0:02:56]} 2. b3 {[%clk 0:02:28]}  d5 {[%clk 0:02:53]} 3. Bb2 {[%clk 0:02:22]}  Bf5 {[%clk 0:02:54]} 4. g3 {[%clk 0:02:16]}  e6 {[%clk 0:02:53]} 5. Bg2 {[%clk 0:02:16]}  h6 {[%clk 0:02:53]} 6. O-O {[%clk 0:02:16]}  Nbd7 {[%clk 0:02:53]} 7. d3 {[%clk 0:02:15]}  c6 {[%clk 0:02:50]} 8. Nbd2 {[%clk 0:02:13]}  Be7 {[%clk 0:02:50]} 9. e4 {[%clk 0:02:13]}  Bh7 {[%clk 0:02:36]} 10. Qe2 {[%clk 0:02:12]}  O-O {[%clk 0:02:35]} 11. a4 {[%clk 0:02:09]}  a5 {[%clk 0:02:29]} 12. Rfd1 {[%clk 0:02:07]}  Nc5 {[%clk 0:02:05]} 13. Ne5 {[%clk 0:02:02]}  Qc7 {[%clk 0:02:02]} 14. f4 {[%clk 0:01:54]}  Rfd8 {[%clk 0:01:55]} 15. Bh3 {[%clk 0:01:52]}  dxe4 {[%clk 0:01:51]} 16. Ndc4 {[%clk 0:01:50]}  exd3 {[%clk 0:01:49]} 17. cxd3 {[%clk 0:01:50]}  Nxb3 {[%clk 0:01:28]} 18. Nxf7 {[%clk 0:01:49]}  Kxf7 {[%clk 0:01:21]} 19. Qxe6+ {[%clk 0:01:48]}  Kf8 {[%clk 0:01:19]} 20. Ne5 {[%clk 0:01:49]}  Bc5+ {[%clk 0:01:17]} 21. d4 {[%clk 0:01:48]}  Nxd4 {[%clk 0:01:15]} 22. Rxd4 {[%clk 0:01:39]}  Rxd4 {[%clk 0:01:06]} 23. Bf5 {[%clk 0:01:33]}  Rd6+ {[%clk 0:01:03]} 0-1


[Site "https://www.chess.com"]

[Event "Titled Tuesday Blitz January 03 Late 2023"]
[White "Stachanczyk, Jacek"]
[Black "Saric, Ibro"]
[WhiteFideId "1116657"]
[BlackFideId "14401290"]
[WhiteElo "2147"]
[BlackElo "2531"]
[Result "0-1"]
[Round "02"]
[TimeControl "180+2"]
[Date "2023.01.03"]
[WhiteClock "0:00:55"]
[BlackClock "0:01:34"]

1. e4 {[%clk 0:02:59]}  c6 {[%clk 0:02:58]} 2. d4 {[%clk 0:02:56]}  d6 {[%clk 0:02:57]} 3. Nc3 {[%clk 0:02:55]}  Nf6 {[%clk 0:02:57]} 4. f4 {[%clk 0:02:52]}  d5 {[%clk 0:02:57]} 5. e5 {[%clk 0:02:52]}  Ng8 {[%clk 0:02:57]} 6. Nf3 {[%clk 0:02:51]}  g6 {[%clk 0:02:58]} 7. Bd3 {[%clk 0:02:45]}  h5 {[%clk 0:02:57]} 8. Ne2 {[%clk 0:02:38]}  Nh6 {[%clk 0:02:57]} 9. Be3 {[%clk 0:02:38]}  Bf5 {[%clk 0:02:55]} 10. Ng3 {[%clk 0:02:24]}  Bxd3 {[%clk 0:02:53]} 11. Qxd3 {[%clk 0:02:24]}  e6 {[%clk 0:02:53]} 12. O-O-O {[%clk 0:02:15]}  Qa5 {[%clk 0:02:49]} 13. Kb1 {[%clk 0:02:14]}  Qb5 {[%clk 0:02:47]} 14. Qd2 {[%clk 0:02:03]}  Nd7 {[%clk 0:02:45]} 15. Ng5 {[%clk 0:01:59]}  Nb6 {[%clk 0:02:42]} 16. Qf2 {[%clk 0:01:43]}  Ng4 {[%clk 0:02:32]} 17. Qf3 {[%clk 0:01:39]}  Nxe3 {[%clk 0:02:01]} 18. Qxe3 {[%clk 0:01:39]}  Qxb2+ {[%clk 0:02:01]} 19. Kxb2 {[%clk 0:01:36]}  Nc4+ {[%clk 0:02:01]} 20. Kc3 {[%clk 0:01:32]}  Nxe3 {[%clk 0:02:02]} 21. Rd2 {[%clk 0:01:26]}  a5 {[%clk 0:01:57]} 22. Re2 {[%clk 0:01:24]}  Nc4 {[%clk 0:01:53]} 23. a4 {[%clk 0:01:11]}  b5 {[%clk 0:01:53]} 24. axb5 {[%clk 0:01:09]}  cxb5 {[%clk 0:01:53]} 25. Rb1 {[%clk 0:01:08]}  b4+ {[%clk 0:01:43]} 26. Kd3 {[%clk 0:01:07]}  a4 {[%clk 0:01:42]} 27. Nf1 {[%clk 0:01:02]}  Rc8 {[%clk 0:01:36]} 28. Nd2 {[%clk 0:00:55]}  Na3 {[%clk 0:01:34]} 0-1


[Site "https://www.chess.com"]

[Event "Titled Tuesday Blitz January 03 Late 2023"]
[White "Sos Andreu, Eric"]
[Black "Tristan, Leonardo"]
[WhiteFideId "22247017"]
[BlackFideId "113816"]
[WhiteElo "2352"]
[BlackElo "2545"]
[Result "0-1"]
[Round "02"]
[TimeControl "180+2"]
[Date "2023.01.03"]
[WhiteClock "0:00:03"]
[BlackClock "0:00:22"]

1. c4 {[%clk 0:03:00]}  e6 {[%clk 0:03:00]} 2. Nf3 {[%clk 0:02:59]}  d5 {[%clk 0:03:00]} 3. g3 {[%clk 0:03:00]}  Nf6 {[%clk 0:03:00]} 4. Bg2 {[%clk 0:03:01]}  Be7 {[%clk 0:03:01]} 5. O-O {[%clk 0:03:01]}  O-O {[%clk 0:03:01]} 6. b3 {[%clk 0:03:02]}  a5 {[%clk 0:03:01]} 7. d3 {[%clk 0:02:57]}  a4 {[%clk 0:03:00]} 8. bxa4 {[%clk 0:02:58]}  dxc4 {[%clk 0:03:00]} 9. Bb2 {[%clk 0:02:53]}  cxd3 {[%clk 0:02:59]} 10. exd3 {[%clk 0:02:53]}  Nbd7 {[%clk 0:02:57]} 11. Nc3 {[%clk 0:02:48]}  Nb6 {[%clk 0:02:55]} 12. Qc2 {[%clk 0:02:42]}  Nfd5 {[%clk 0:02:49]} 13. Nxd5 {[%clk 0:02:40]}  exd5 {[%clk 0:02:49]} 14. Be5 {[%clk 0:02:24]}  c6 {[%clk 0:02:48]} 15. Rab1 {[%clk 0:02:23]}  Nxa4 {[%clk 0:02:46]} 16. Rfe1 {[%clk 0:02:19]}  Bf6 {[%clk 0:02:42]} 17. d4 {[%clk 0:02:12]}  Bxe5 {[%clk 0:02:39]} 18. Nxe5 {[%clk 0:02:12]}  Qa5 {[%clk 0:02:29]} 19. Re2 {[%clk 0:02:07]}  Nc3 {[%clk 0:02:27]} 20. Rbe1 {[%clk 0:01:58]}  Nxe2+ {[%clk 0:02:26]} 21. Qxe2 {[%clk 0:01:59]}  Qxa2 {[%clk 0:02:22]} 22. Qh5 {[%clk 0:01:59]}  Qd2 {[%clk 0:02:11]} 23. Rd1 {[%clk 0:01:59]}  Qc2 {[%clk 0:02:10]} 24. Bf1 {[%clk 0:01:50]}  Ra2 {[%clk 0:02:06]} 25. Qf3 {[%clk 0:01:44]}  Qf5 {[%clk 0:01:47]} 26. Qe3 {[%clk 0:01:41]}  Qc2 {[%clk 0:01:15]} 27. Qf3 {[%clk 0:01:28]}  f6 {[%clk 0:01:12]} 28. Nd3 {[%clk 0:01:28]}  Ra3 {[%clk 0:01:05]} 29. Re1 {[%clk 0:01:12]}  Qd2 {[%clk 0:00:42]} 30. Re7 {[%clk 0:01:06]}  Ra1 {[%clk 0:00:39]} 31. Nf4 {[%clk 0:00:28]}  Qd1 {[%clk 0:00:35]} 32. Qg2 {[%clk 0:00:18]}  b6 {[%clk 0:00:31]} 33. Nxd5 {[%clk 0:00:05]}  cxd5 {[%clk 0:00:24]} 34. Qxd5+ {[%clk 0:00:06]}  Kh8 {[%clk 0:00:25]} 35. Qc4 {[%clk 0:00:04]}  Ba6 {[%clk 0:00:23]} 36. Rf7 {[%clk 0:00:03]}  Qxf1+ {[%clk 0:00:20]} 37. Qxf1 {[%clk 0:00:02]}  Rxf1+ {[%clk 0:00:21]} 38. Kg2 {[%clk 0:00:03]}  Rxf7 {[%clk 0:00:22]} 0-1


[Site "https://www.chess.com"]

[Event "Titled Tuesday Blitz January 03 Late 2023"]
[White "Korchmar, Vasiliy"]
[Black "Jorajuria Mendoza, Algol"]
[WhiteFideId "24131750"]
[BlackFideId "5128897"]
[WhiteElo "2438"]
[BlackElo "2069"]
[Result "1-0"]
[Round "02"]
[TimeControl "180+2"]
[Date "2023.01.03"]
[WhiteClock "0:00:21"]
[BlackClock "0:00:11"]

1. e4 {[%clk 0:03:00]}  c5 {[%clk 0:02:59]} 2. Nf3 {[%clk 0:03:01]}  d6 {[%clk 0:03:00]} 3. d4 {[%clk 0:03:01]}  cxd4 {[%clk 0:03:00]} 4. Nxd4 {[%clk 0:03:02]}  Nf6 {[%clk 0:03:01]} 5. Nc3 {[%clk 0:03:01]}  Nc6 {[%clk 0:03:01]} 6. Be2 {[%clk 0:02:59]}  g6 {[%clk 0:03:00]} 7. O-O {[%clk 0:02:59]}  Bg7 {[%clk 0:03:01]} 8. Nb3 {[%clk 0:02:59]}  O-O {[%clk 0:03:00]} 9. Re1 {[%clk 0:03:00]}  a6 {[%clk 0:02:56]} 10. Bf1 {[%clk 0:03:00]}  b5 {[%clk 0:02:55]} 11. Bg5 {[%clk 0:02:59]}  Ng4 {[%clk 0:02:44]} 12. h3 {[%clk 0:02:55]}  h6 {[%clk 0:02:39]} 13. Bh4 {[%clk 0:02:50]}  g5 {[%clk 0:02:25]} 14. Bg3 {[%clk 0:02:48]}  Nge5 {[%clk 0:02:21]} 15. a4 {[%clk 0:02:49]}  bxa4 {[%clk 0:02:11]} 16. Rxa4 {[%clk 0:02:43]}  Bb7 {[%clk 0:02:11]} 17. Nd5 {[%clk 0:02:38]}  e6 {[%clk 0:01:59]} 18. Ne3 {[%clk 0:02:35]}  Qe7 {[%clk 0:01:59]} 19. Qa1 {[%clk 0:02:29]}  Rfc8 {[%clk 0:01:51]} 20. Bxa6 {[%clk 0:02:13]}  Bxa6 {[%clk 0:01:51]} 21. Rxa6 {[%clk 0:02:13]}  Rab8 {[%clk 0:01:47]} 22. Rd1 {[%clk 0:02:02]}  Rd8 {[%clk 0:01:15]} 23. Qa4 {[%clk 0:01:36]}  Nb4 {[%clk 0:01:14]} 24. Ra7 {[%clk 0:01:36]}  Qf8 {[%clk 0:01:13]} 25. c3 {[%clk 0:01:30]}  Nbd3 {[%clk 0:01:09]} 26. Rd2 {[%clk 0:00:58]}  Nf4 {[%clk 0:00:51]} 27. Nd4 {[%clk 0:00:48]}  Rb6 {[%clk 0:00:41]} 28. b3 {[%clk 0:00:30]}  Rc8 {[%clk 0:00:40]} 29. c4 {[%clk 0:00:30]}  Rcb8 {[%clk 0:00:40]} 30. Nb5 {[%clk 0:00:30]}  d5 {[%clk 0:00:26]} 31. exd5 {[%clk 0:00:27]}  exd5 {[%clk 0:00:26]} 32. Bxf4 {[%clk 0:00:25]}  gxf4 {[%clk 0:00:27]} 33. Nxd5 {[%clk 0:00:25]}  Re6 {[%clk 0:00:19]} 34. Nxf4 {[%clk 0:00:22]}  Rf6 {[%clk 0:00:18]} 35. Nd5 {[%clk 0:00:22]}  Rd8 {[%clk 0:00:12]} 36. Nxf6+ {[%clk 0:00:21]}  Bxf6 {[%clk 0:00:13]} 37. Rxd8 {[%clk 0:00:21]}  Bxd8 {[%clk 0:00:12]} 38. Ra8 {[%clk 0:00:22]}  Kh7 {[%clk 0:00:12]} 39. Qa1 {[%clk 0:00:21]}  Qg7 {[%clk 0:00:11]} 40. Qb1+ {[%clk 0:00:21]} 1-0


[Site "https://www.chess.com"]

[Event "Titled Tuesday Blitz January 03 Late 2023"]
[White "Godzwon, Iwo"]
[Black "Rosenberg, Evan S"]
[WhiteFideId "21802483"]
[BlackFideId "2019299"]
[WhiteElo "2394"]
[BlackElo "1956"]
[Result "1-0"]
[Round "02"]
[TimeControl "180+2"]
[Date "2023.01.03"]
[WhiteClock "0:00:25"]
[BlackClock "0:00:04"]

1. e4 {[%clk 0:02:58]}  e5 {[%clk 0:02:59]} 2. Nf3 {[%clk 0:02:58]}  Nc6 {[%clk 0:02:58]} 3. Bb5 {[%clk 0:02:58]}  Nf6 {[%clk 0:02:57]} 4. d3 {[%clk 0:02:57]}  Ne7 {[%clk 0:02:57]} 5. O-O {[%clk 0:02:55]}  c6 {[%clk 0:02:57]} 6. Ba4 {[%clk 0:02:55]}  Ng6 {[%clk 0:02:58]} 7. Re1 {[%clk 0:02:53]}  Be7 {[%clk 0:02:57]} 8. Nbd2 {[%clk 0:02:54]}  O-O {[%clk 0:02:56]} 9. Nf1 {[%clk 0:02:54]}  Qc7 {[%clk 0:02:46]} 10. Bb3 {[%clk 0:02:48]}  d5 {[%clk 0:02:41]} 11. Bg5 {[%clk 0:02:48]}  Be6 {[%clk 0:02:36]} 12. Qe2 {[%clk 0:02:40]}  h6 {[%clk 0:02:29]} 13. Bd2 {[%clk 0:02:36]}  d4 {[%clk 0:02:19]} 14. Ng3 {[%clk 0:02:34]}  a5 {[%clk 0:02:11]} 15. c3 {[%clk 0:02:22]}  dxc3 {[%clk 0:01:55]} 16. Bxc3 {[%clk 0:02:21]}  Bc5 {[%clk 0:01:43]} 17. Nf5 {[%clk 0:02:07]}  Rfe8 {[%clk 0:01:22]} 18. Qc2 {[%clk 0:02:01]}  Bb6 {[%clk 0:01:14]} 19. d4 {[%clk 0:01:58]}  exd4 {[%clk 0:01:08]} 20. N5xd4 {[%clk 0:01:54]}  Bxb3 {[%clk 0:01:03]} 21. axb3 {[%clk 0:01:55]}  Qf4 {[%clk 0:00:54]} 22. g3 {[%clk 0:01:34]}  Qg4 {[%clk 0:00:49]} 23. h3 {[%clk 0:01:11]}  Qxh3 {[%clk 0:00:45]} 24. e5 {[%clk 0:01:11]}  Ng4 {[%clk 0:00:36]} 25. e6 {[%clk 0:01:10]}  Bxd4 {[%clk 0:00:12]} 26. Bxd4 {[%clk 0:01:01]}  Ne7 {[%clk 0:00:10]} 27. exf7+ {[%clk 0:00:54]}  Kxf7 {[%clk 0:00:10]} 28. Qh7 {[%clk 0:00:54]}  Rg8 {[%clk 0:00:07]} 29. Bxg7 {[%clk 0:00:48]}  Nxf2 {[%clk 0:00:05]} 30. Bf6+ {[%clk 0:00:41]}  Kxf6 {[%clk 0:00:05]} 31. Qxe7+ {[%clk 0:00:41]}  Kg6 {[%clk 0:00:05]} 32. Ne5+ {[%clk 0:00:25]}  Kh5 {[%clk 0:00:05]} 33. Qf7+ {[%clk 0:00:25]}  Rg6 {[%clk 0:00:04]} 34. Qxg6# {[%clk 0:00:25]} 1-0


[Site "https://www.chess.com"]